fUSD/lending_fUSD_20260128
["ID","MTS","AMOUNT","RATE_DAILY","PERIOD"]
[403844415,1769590429490,213.88800329,0.00014158,2]
[403844416,1769590429526,620.25854333,0.00014158,2]
[403844417,1769590429562,620.25854333,0.00014158,2]
[403844418,1769590429604,620.25854333,0.00014158,2]
[403844419,1769590429643,620.25854333,0.00014158,2]
[403844420,1769590429679,620.25854333,0.00014158,2]
[403844421,1769590429718,620.25854333,0.00014158,2]
[403844422,1769590429754,620.25854333,0.00014158,2]
[403844423,1769590429790,620.25854333,0.00014158,2]
[403844424,1769590429826,620.25854333,0.00014158,2]
[403844425,1769590429864,620.25854333,0.00014158,2]
[403844426,1769590429903,620.25854333,0.00014158,2]
[403844427,1769590429944,620.25854333,0.00014158,2]
[403844428,1769590429980,620.25854333,0.00014158,2]
[403844429,1769590430022,620.25854333,0.00014158,2]
[403844430,1769590430062,620.25854333,0.00014158,2]
[403844431,1769590430099,482.24384676,0.00014158,2]
[403844432,1769590430124,138.01469657,0.00014158,2]
[403844433,1769590430163,620.25854333,0.00014158,2]
[403844434,1769590430200,620.25854333,0.00014158,2]
[403844435,1769590430251,620.25854333,0.00014158,2]
[403844436,1769590430291,620.25854333,0.00014158,2]
[403844437,1769590430328,620.25854333,0.00014158,2]
[403844438,1769590430377,620.25854333,0.00014158,2]
[403844439,1769590430419,620.25854333,0.00014158,2]
[403844440,1769590430456,620.25854333,0.00014158,2]
[403844441,1769590430498,620.25854333,0.00014158,2]
[403844442,1769590430539,620.25854333,0.00014158,2]
[403844443,1769590430581,620.25854333,0.00014158,2]
[403844444,1769590430617,620.25854333,0.00014158,2]
[403844445,1769590430652,620.25854333,0.00014158,2]
[403844446,1769590430692,620.25854333,0.00014158,2]
[403844447,1769590430737,620.25854333,0.00014158,2]
[403844448,1769590430775,558.11715348,0.00014158,2]
[403844449,1769590430800,62.14138985,0.00014158,2]
[403844450,1769590430838,620.25854333,0.00014158,2]
[403844451,1769590430879,620.25854333,0.00014158,2]
[403844452,1769590430922,620.25854333,0.00014158,2]
[403844453,1769590430958,620.25854333,0.00014158,2]
[403844454,1769590436785,500.0,0.00013996,2]
[403844455,1769590441669,150.0,0.00014158,2]
[403844456,1769590442966,300.0,0.00014158,2]
[403844457,1769590501257,1200.0,0.00014158,2]
[403844458,1769590501297,300.0,0.00014158,2]
[403844459,1769590523708,355.684774,0.00014067,2]
[403844460,1769590538428,207.8994773,0.00014158,2]
[403844461,1769590547163,518.13467814,0.00014158,2]
[403844462,1769590552464,500.0,0.00014158,2]
[403844463,1769590552506,500.0,0.00014158,2]
[403844464,1769590552551,500.0,0.00014158,2]
[403844465,1769590552919,500.0,0.00014158,2]
[403844466,1769590552987,500.0,0.00014158,2]
[403844467,1769590553030,296.98067015,0.00014158,2]
[403844468,1769590553081,500.0,0.00014158,2]
[403844469,1769590553135,500.0,0.00014158,2]
[403844470,1769590553185,128.13483724,0.00014158,2]
[403844471,1769590553215,371.86516276,0.00014158,2]
[403844472,1769590553261,500.0,0.00014158,2]
[403844473,1769590553304,500.0,0.00014158,2]
[403844474,1769590553366,500.0,0.00014158,2]
[403844475,1769590553413,500.0,0.00014158,2]
[403844476,1769590553465,500.0,0.00014158,2]
[403844477,1769590553512,500.0,0.00014158,2]
[403844478,1769590553558,500.0,0.00014158,2]
[403844479,1769590553835,500.0,0.00014158,2]
[403844480,1769590553881,500.0,0.00014158,2]
[403844481,1769590553940,500.0,0.00014158,2]
[403844482,1769590553990,500.0,0.00014158,2]
[403844483,1769590554045,500.0,0.00014158,2]
[403844484,1769590554105,500.0,0.00014158,2]
[403844485,1769590554225,500.0,0.00014158,2]
[403844486,1769590554276,500.0,0.00014158,2]
[403844487,1769590554331,500.0,0.00014158,2]
[403844488,1769590554418,500.0,0.00014158,2]
[403844489,1769590554472,500.0,0.00014158,2]
[403844490,1769590554527,500.0,0.00014158,2]
[403844491,1769590554579,128.14483724,0.00014158,2]
[403844492,1769590554614,371.85516276,0.00014158,2]
[403844493,1769590561312,300.0,0.00014158,2]
[403844494,1769590561800,500.0,0.00014158,2]
[403844495,1769590561850,500.0,0.00014158,2]
[403844496,1769590561897,500.0,0.00014158,2]
[403844497,1769590561944,500.0,0.00014158,2]
[403844498,1769590622475,150.0,0.00014158,2]
[403844499,1769590625288,206.24263098,0.0001415,2]
[403844500,1769590628343,500.0,0.0001415,2]
[403844501,1769590633933,202.2917898,0.0001415,2]
[403844502,1769590647613,500.0,0.0001415,2]
[403844503,1769590647650,200.0,0.0001415,2]
[403844504,1769590648237,500.0,0.0001415,2]
[403844505,1769590648848,500.0,0.0001415,2]
[403844506,1769590649485,500.0,0.0001415,2]
[403844507,1769590650104,500.0,0.0001415,2]
[403844508,1769590650697,500.0,0.0001415,2]
[403844509,1769590651293,500.0,0.0001415,2]
[403844510,1769590651905,500.0,0.0001415,2]
[403844511,1769590652542,500.0,0.0001415,2]
[403844512,1769590653140,437.93099095,0.0001415,2]
[403844513,1769590659701,500.0,0.00014158,2]
[403844514,1769590659994,436.48418608,0.00014158,2]
[403844515,1769590662079,195.20523943,0.00014158,2]
[403844516,1769590662102,277.77873758,0.00014158,2]
[403844517,1769590681730,262.2465879,0.00014067,2]
[403844518,1769590756224,2066.25155013,0.00014067,2]
[403844519,1769590778416,940.19436341,0.00014146,2]
[403844520,1769590788053,1197.58789124,0.00014067,2]
[403844521,1769590801319,1200.0,0.00014158,2]
[403844522,1769590807240,318.81488297,0.00014158,2]
[403844523,1769590810889,324.41,0.00014149,2]
[403844524,1769590811110,324.41,0.00014149,2]
[403844525,1769590813087,232.33758293,0.00014158,2]
[403844529,1769590829649,153.25303109,0.00014158,2]
[403844531,1769590892421,2702.72537275,0.00013875,2]
[403844532,1769590892447,569.49162725,0.00013875,2]
[403844533,1769590892486,261.699,0.00013875,2]
[403844534,1769590920485,163.21,0.0001137,2]
[403844535,1769590920525,163.21,0.00012506,2]
[403844536,1769590920561,163.21,0.00013643,2]
[403844537,1769590948318,2327.299,0.00014059,2]
[403844538,1769590949042,503.77912883,0.0001415,2]
[403844539,1769590960876,500.0,0.0001415,2]
[403844540,1769590961464,500.0,0.0001415,2]
[403844541,1769590962076,500.0,0.0001415,2]
[403844542,1769590962688,500.0,0.0001415,2]
[403844543,1769590963339,500.0,0.0001415,2]
[403844544,1769590964420,500.0,0.0001415,2]
[403844545,1769590964575,596.53357339,0.0001415,2]
[403844546,1769591101228,1200.0,0.00014158,2]
[403844547,1769591142440,1051.57767053,0.00014067,2]
[403844548,1769591142466,808.04872465,0.00014067,2]
[403844549,1769591152317,5011.08881579,0.00014159,5]
[403844550,1769591235777,500.0,0.0001415,2]
[403844551,1769591236365,500.0,0.0001415,2]
[403844552,1769591236657,500.0,0.0001415,2]
[403844553,1769591236961,500.0,0.0001415,2]
[403844554,1769591237270,500.0,0.0001415,2]
[403844555,1769591237579,500.0,0.0001415,2]
[403844556,1769591237888,500.0,0.0001415,2]
[403844557,1769591249385,300.0,0.000138,5]
[403844558,1769591251482,700.0,0.000139,5]
[403844559,1769591253575,1100.0,0.000149,5]
[403844560,1769591255742,151.0,0.0001415,2]
[403844561,1769591256326,151.0,0.0001415,2]
[403844562,1769591279153,1585.44,0.00013964,2]
[403844563,1769591296182,3804.52127535,0.00013964,2]
[403844564,1769591296205,10000.01,0.00013964,2]
[403844565,1769591296228,10000.01,0.00013964,2]
[403844566,1769591296250,10000.01,0.00013964,2]
[403844567,1769591296276,742.74872465,0.00013964,2]
[403844568,1769591302275,1077.82910208,0.00014063,2]
[403844569,1769591303053,1000.0,0.00013964,2]
[403844570,1769591351092,500.0,0.00014158,2]
[403844571,1769591351129,500.0,0.00014158,2]
[403844572,1769591351166,500.0,0.00014158,2]
[403844573,1769591351206,500.0,0.00014158,2]
[403844574,1769591351243,500.0,0.00014158,2]
[403844575,1769591351302,500.0,0.00014158,2]
[403844576,1769591351357,500.0,0.00014158,2]
[403844577,1769591351411,500.0,0.00014158,2]
[403844578,1769591351451,500.0,0.00014158,2]
[403844579,1769591351492,429.094201,0.00014158,2]
[403844580,1769591351533,500.0,0.00014158,2]
[403844581,1769591352484,2493.08669692,0.00014059,2]
[403844582,1769591352514,10000.01,0.00014059,2]
[403844583,1769591352544,10000.01,0.00014059,2]
[403844584,1769591352577,10000.01,0.00014059,2]
[403844585,1769591352609,10000.01,0.00014059,2]
[403844586,1769591352638,10000.01,0.00014059,2]
[403844587,1769591352668,10000.01,0.00014059,2]
[403844588,1769591352699,10000.01,0.00014059,2]
[403844589,1769591352730,10000.01,0.00014059,2]
[403844590,1769591352760,10000.01,0.00014059,2]
[403844591,1769591401500,1200.0,0.00014058,2]
[403844592,1769591413771,1023.577871,0.00013988,2]
[403844598,1769591431411,-4140.79393944,0.00014059,2]
[403844643,1769591437407,-7219.60376223,0.00014059,2]
[403844644,1769591437462,-301.76454383,0.00014059,2]
[403844688,1769591439740,-42023.4761649,0.00014059,2]
[403844690,1769591439805,-347.053942,0.00014059,2]
[403844699,1769591442881,-765.60611059,0.00014059,2]
[403844700,1769591444303,3162.94,0.00013962,2]
[403844701,1769591445379,-7750.0,0.00014059,2]
[403844702,1769591445432,-12703.48655946,0.00014059,2]
[403844704,1769591445443,-59623.70741145,0.00014059,2]
[403844705,1769591445454,-647.22640714,0.00014059,2]
[403844706,1769591445464,-409.14193754,0.00014059,2]
[403844709,1769591462457,300.0,0.00014058,2]
[403844710,1769591471748,539.886745,7.945e-05,2]
[403844711,1769591482629,-5921.11548528,0.00014059,2]
[403844712,1769591482805,-10000.01,0.00014059,2]
[403844713,1769591482939,-10000.01,0.00014059,2]
[403844714,1769591483048,-10000.01,0.00014059,2]
[403844715,1769591483835,-10000.01,0.00014059,2]
[403844716,1769591483849,-4937.75743922,0.00014059,2]
[403844717,1769591483859,-500.0,0.00014059,2]
[403844718,1769591483869,-600.0,0.00014108,2]
[403844719,1769591483879,-683.13833527,0.00014141,2]
[403844720,1769591483888,-500.0,0.00014158,2]
[403844721,1769591483898,-500.0,0.00014158,2]
[403844722,1769591483907,-500.0,0.00014158,2]
[403844723,1769591483917,-500.0,0.00014158,2]
[403844724,1769591483927,-429.094201,0.00014158,2]
[403844725,1769591483936,-500.0,0.00014158,2]
[403844726,1769591483945,-350.02002451,0.00014158,2]
[403844727,1769591483959,-149.97997549,0.00014158,2]
[403844728,1769591483968,-500.0,0.00014158,2]
[403844729,1769591483978,-500.0,0.00014158,2]
[403844730,1769591483987,-500.0,0.00014158,2]
[403844731,1769591483996,-522.58196156,0.00014158,2]
[403844732,1769591484006,-500.0,0.00014159,2]
[403844733,1769591484015,-500.0,0.00014159,2]
[403844734,1769591484025,-500.0,0.00014159,2]
[403844735,1769591484035,-192.04100038,0.00014159,2]
[403844736,1769591484044,-1196.01,0.00014159,2]
[403844737,1769591484053,-250.0,0.00014163,2]
[403844738,1769591484063,-1000.0,0.00014167,2]
[403844739,1769591484073,-3689.39706257,0.00014167,2]
[403844740,1769591484130,-10000.01,0.00014167,2]
[403844741,1769591485178,-10000.01,0.00014167,2]
[403844742,1769591494785,-431.91956257,0.00014167,2]
[403844743,1769591494813,-9136.17087486,0.00014167,2]
[403844744,1769591494909,-2280.75,0.00014202,2]
[403844745,1769591494950,-2220.04,0.0001421,2]
[403844746,1769591494987,-284.95,0.00014222,2]
[403844747,1769591495095,-1271.71,0.00014228,2]
[403844748,1769591504569,7456.59,0.00014059,2]
[403844749,1769591504595,10000.01,0.00014059,2]
[403844750,1769591504620,10000.01,0.00014059,2]
[403844751,1769591504645,10000.01,0.00014059,2]
[403844752,1769591504671,10000.01,0.00014059,2]
[403844753,1769591504697,10000.01,0.00014059,2]
[403844754,1769591504723,10000.01,0.00014059,2]
[403844755,1769591504749,10000.01,0.00014059,2]
[403844756,1769591504775,10000.01,0.00014059,2]
[403844757,1769591504800,10000.01,0.00014059,2]
[403844758,1769591522935,-300.0,0.00014058,2]
[403844759,1769591522969,-150.0,0.00014058,2]
[403844760,1769591525886,200.0,0.00014049,2]
[403844763,1769591588906,300.0,0.00014058,2]
[403844764,1769591601829,1200.0,0.00014058,2]
[403844765,1769591622915,468.09,0.00014,2]
[403844766,1769591641471,300.0,0.00014058,2]
[403844767,1769591659190,150.0,0.00020726,30]
[403844768,1769591660405,251.58811045,0.00020781,30]
[403844769,1769591660722,150.0,0.00020726,30]
[403844770,1769591660836,150.0,0.00020781,30]
[403844771,1769591660903,150.0,0.00020836,30]
[403844772,1769591660986,150.0,0.00020726,30]
[403844773,1769591661055,150.0,0.0002089,30]
[403844774,1769591661120,150.0,0.00020781,30]
[403844775,1769591661207,150.0,0.00020945,30]
[403844776,1769591661556,250.0,0.00021,30]
[403844777,1769591662073,150.0,0.00020726,30]
[403844778,1769591662215,150.0,0.00020781,30]
[403844779,1769591662276,150.0,0.00020836,30]
[403844780,1769591662331,500.0,0.00020726,30]
[403844781,1769591662428,150.0,0.0002089,30]
[403844782,1769591662482,502.30791208,0.00020781,30]
[403844783,1769591662550,150.0,0.00020945,30]
[403844784,1769591662627,250.0,0.00021,30]
[403844785,1769591663168,150.0,0.00020726,30]
[403844786,1769591663268,150.0,0.00020726,30]
[403844787,1769591663330,150.0,0.00020781,30]
[403844788,1769591663413,150.0,0.00020781,30]
[403844789,1769591663482,150.0,0.00020836,30]
[403844790,1769591663561,150.0,0.00020836,30]
[403844791,1769591663646,150.0,0.0002089,30]
[403844792,1769591664001,150.0,0.0002089,30]
[403844793,1769591664057,150.0,0.00020945,30]
[403844794,1769591664122,150.0,0.00020945,30]
[403844795,1769591664174,250.0,0.00021,30]
[403844796,1769591664236,250.0,0.00021,30]
[403844797,1769591664310,150.0,0.00020726,30]
[403844798,1769591664452,150.0,0.00020781,30]
[403844799,1769591664602,150.0,0.00020836,30]
[403844800,1769591664827,150.0,0.0002089,30]
[403844801,1769591664957,150.0,0.00020945,30]
[403844802,1769591665212,250.0,0.00021,30]
[403844803,1769591665366,150.0,0.00020726,30]
[403844804,1769591665519,150.0,0.00020781,30]
[403844805,1769591701196,1200.0,0.00014058,2]
[403844806,1769591701680,150.0,0.00014058,2]
[403844807,1769591715258,5281.92,0.00013869,2]
[403844808,1769591715279,10000.01,0.00013869,2]
[403844809,1769591715302,10000.01,0.00013869,2]
[403844810,1769591715326,10000.01,0.00013869,2]
[403844811,1769591715348,10000.01,0.00013869,2]
[403844812,1769591715371,10000.01,0.00013869,2]
[403844813,1769591715391,10000.01,0.00013869,2]
[403844814,1769591715411,10000.01,0.00013869,2]
[403844815,1769591715435,10000.01,0.00013869,2]
[403844816,1769591715456,8153.66,0.00013869,2]
[403844817,1769591733935,150.70133408,0.00020726,30]
[403844818,1769591751856,282.51627232,0.00013959,2]
[403844819,1769591756819,282.51627232,0.00014005,2]
[403844820,1769591761820,282.51627232,0.0001405,2]
[403844822,1769591812951,998.80118304,0.00013959,2]
[403844823,1769591812974,720.81425207,0.00013959,2]
[403844824,1769591821266,300.0,0.00014058,2]
[403844825,1769591828837,200.0,0.00014059,2]
[403844826,1769591831686,500.0,0.00014059,2]
[403844827,1769591832308,500.0,0.00014059,2]
[403844828,1769591832604,151.0,0.00014059,2]
[403844829,1769591832770,2325.1357,0.00013959,2]
[403844830,1769591832945,500.0,0.00014059,2]
[403844831,1769591833214,151.0,0.00014059,2]
[403844832,1769591833571,500.0,0.00014059,2]
[403844833,1769591833833,151.0,0.00014059,2]
[403844834,1769591834176,500.0,0.00014059,2]
[403844835,1769591834446,151.0,0.00014059,2]
[403844836,1769591834785,500.0,0.00014059,2]
[403844837,1769591835042,151.0,0.00014059,2]
[403844838,1769591836512,500.0,0.00014059,2]
[403844839,1769591836573,151.0,0.00014059,2]
[403844840,1769591836646,500.0,0.00014059,2]
[403844841,1769591836709,151.0,0.00014059,2]
[403844842,1769591836841,500.0,0.00014059,2]
[403844843,1769591836936,151.0,0.00014059,2]
[403844844,1769591837251,500.0,0.00014059,2]
[403844845,1769591837486,151.0,0.00014059,2]
[403844846,1769591837537,95.06004793,0.00014059,2]
[403844847,1769591837561,404.93995207,0.00014059,2]
[403844848,1769591837844,500.0,0.00014059,2]
[403844849,1769591838075,151.0,0.00014059,2]
[403844850,1769591838140,500.0,0.00014059,2]
[403844851,1769591838680,151.0,0.00014059,2]
[403844852,1769591838741,500.0,0.00014059,2]
[403844853,1769591838965,7793.07004793,0.00013959,2]
[403844854,1769591838986,10000.01,0.00013959,2]
[403844855,1769591839008,10000.01,0.00013959,2]
[403844856,1769591839031,10000.01,0.00013959,2]
[403844857,1769591839054,10000.01,0.00013959,2]
[403844858,1769591839077,8761.13425207,0.00013959,2]
[403844859,1769591839285,151.0,0.00014059,2]
[403844860,1769591839348,500.0,0.00014059,2]
[403844861,1769591839893,151.0,0.00014059,2]
[403844862,1769591839976,436.87574793,0.00014059,2]
[403844863,1769591840000,63.12425207,0.00014059,2]
[403844864,1769591840499,151.0,0.00014059,2]
[403844865,1769591840600,500.0,0.00014059,2]
[403844866,1769591841113,151.0,0.00014059,2]
[403844867,1769591841230,500.0,0.00014059,2]
[403844868,1769591841712,151.0,0.00014059,2]
[403844869,1769591841873,500.0,0.00014059,2]
[403844870,1769591842009,200.0,0.00014059,2]
[403844871,1769591842319,151.0,0.00014059,2]
[403844872,1769591842470,500.0,0.00014059,2]
[403844873,1769591842920,151.0,0.00014059,2]
[403844874,1769591843063,500.0,0.00014059,2]
[403844875,1769591843099,151.0,0.00014059,2]
[403844876,1769591843549,151.0,0.00014059,2]
[403844877,1769591843677,500.0,0.00014059,2]
[403844878,1769591843740,151.0,0.00014059,2]
[403844879,1769591844190,151.0,0.00014059,2]
[403844880,1769591844288,151.0,0.00014059,2]
[403844881,1769591844884,151.0,0.00014059,2]
[403844882,1769591845482,151.0,0.00014059,2]
[403844883,1769591846112,151.0,0.00014059,2]
[403844884,1769591847307,151.0,0.00014059,2]
[403844885,1769591847429,151.0,0.00014059,2]
[403844886,1769591848031,151.0,0.00014059,2]
[403844887,1769591848631,151.0,0.00014059,2]
[403844888,1769591849585,151.0,0.00014059,2]
[403844889,1769591850558,200.0,0.00014059,2]
[403844890,1769591860229,-500.0,0.00014059,2]
[403844891,1769591862359,-457.81236408,0.00014059,2]
[403844892,1769591862409,-5346.68101977,0.00014059,2]
[403844893,1769591862458,-10000.01,0.00014059,2]
[403844894,1769591862602,-10000.01,0.00014059,2]
[403844895,1769591862721,-10000.01,0.00014059,2]
[403844896,1769591862872,-10000.01,0.00014059,2]
[403844897,1769591862988,-10000.01,0.00014059,2]
[403844898,1769591863128,-10000.01,0.00014059,2]
[403844899,1769591863344,-10000.01,0.00014059,2]
[403844900,1769591863466,-10000.01,0.00014059,2]
[403844901,1769591865674,-10000.01,0.00014059,2]
[403844902,1769591961865,-300.0,0.00013865,2]
[403844903,1769591961894,-250.0,0.00013866,2]
[403844904,1769591961945,-8900.01,0.00013866,2]
[403844905,1769591970278,-4115.8,0.00013866,2]
[403844906,1769591970304,-237.1434,0.00013959,2]
[403844907,1769591970360,-1294.1232,0.00013959,2]
[403844908,1769592025030,150.0,0.00020726,30]
[403844909,1769592025212,150.0,0.00020781,30]
[403844910,1769592025367,200.0,0.00020836,30]
[403844911,1769592026450,150.0,0.00020726,30]
[403844912,1769592026635,150.0,0.00020781,30]
[403844913,1769592026822,200.0,0.00020836,30]
[403844914,1769592131345,1160.7,0.00021,30]
[403844915,1769592149778,-264.0,0.00013796,2]
[403844916,1769592149810,-223.46614869,0.00013858,2]
[403844917,1769592149841,-1200.0,0.00013958,2]
[403844918,1769592149869,-253.0,0.00013958,2]
[403844919,1769592149897,-150.0,0.00013958,2]
[403844920,1769592149925,-300.0,0.00013958,2]
[403844921,1769592149954,-300.0,0.00013958,2]
[403844922,1769592149982,-1108.07090262,0.00013959,2]
[403844923,1769592150130,-2402.93589738,0.00013959,2]
[403844924,1769592164367,-528.478462,0.00013727,2]
[403844925,1769592164395,-1280.9594,0.00013959,2]
[403844926,1769592164446,-6381.134276,0.00013959,2]
[403844927,1769592168371,-1652.302824,0.00013959,2]
[403844928,1769592168400,-2500.0,0.00013959,2]
[403844929,1769592168430,-267.66339202,0.00013959,2]
[403844930,1769592168458,-223.46614869,0.00013959,2]
[403844931,1769592168488,-203.72469864,0.00013959,2]
[403844932,1769592168594,-305.6958733,0.00013967,2]
[403844933,1769592168634,-3596.03867206,0.00013967,2]
[403844934,1769592168664,-150.00213191,0.0001401,2]
[403844935,1769592168692,-214.89049305,0.00014049,2]
[403844936,1769592168724,-200.03,0.00014049,2]
[403844937,1769592168752,-151.0,0.00014056,2]
[403844938,1769592168780,-151.0,0.00014056,2]
[403844939,1769592168808,-51.08740596,0.00014058,2]
[403844940,1769592168875,-971.91259404,0.00014058,2]
[403844941,1769592168904,-380.73803523,0.00014058,2]
[403844942,1769592168933,-500.0,0.00014058,2]
[403844943,1769592168961,-500.0,0.00014058,2]
[403844944,1769592168989,-500.0,0.00014058,2]
[403844945,1769592169018,-500.0,0.00014058,2]
[403844946,1769592169046,-500.0,0.00014058,2]
[403844947,1769592169073,-500.0,0.00014058,2]
[403844948,1769592169102,-500.0,0.00014058,2]
[403844949,1769592169197,-500.0,0.00014058,2]
[403844950,1769592169224,-500.0,0.00014058,2]
[403844951,1769592169251,-500.0,0.00014058,2]
[403844952,1769592169278,-262.018,0.00014058,2]
[403844953,1769592169307,-3214.552,0.00014058,2]
[403844954,1769592169398,-46.87,0.00014058,2]
[403844955,1769592169425,-500.0,0.00014058,2]
[403844956,1769592169453,-203.72469864,0.00014058,2]
[403844957,1769592169481,-200.0,0.00014059,2]
[403844958,1769592169509,-500.0,0.00014059,2]
[403844959,1769592169538,-500.0,0.00014059,2]
[403844960,1769592169567,-151.0,0.00014059,2]
[403844961,1769592169597,-499.11920871,0.00014059,2]
[403844962,1769592169631,-500.0,0.00014059,2]
[403844963,1769592169659,-151.0,0.00014059,2]
[403844964,1769592169686,-151.0,0.00014059,2]
[403844965,1769592169715,-500.0,0.00014059,2]
[403844966,1769592169743,-151.0,0.00014059,2]
[403844967,1769592169771,-537.55489787,0.00014059,2]
[403844968,1769592169799,-200.0,0.00014059,2]
[403844969,1769592169826,-151.0,0.00014059,2]
[403844970,1769592170647,-151.0,0.00014059,2]
[403844971,1769592170656,-151.0,0.00014059,2]
[403844972,1769592170667,-106.88584557,0.00014059,2]
[403844973,1769592170681,-44.11415443,0.00014059,2]
[403844974,1769592170691,-106.88584557,0.00014059,2]
[403844975,1769592170708,-44.11415443,0.00014059,2]
[403844976,1769592170717,-151.0,0.00014059,2]
[403844977,1769592170727,-151.0,0.00014059,2]
[403844978,1769592170736,-191.44074344,0.00014059,2]
[403844979,1769592170752,-200.0,0.00014059,2]
[403844980,1769592170769,-108.55925656,0.00014059,2]
[403844981,1769592170778,-42.44074344,0.00014059,2]
[403844982,1769592170792,-115.47238956,0.00014059,2]
[403844983,1769592171423,-42.086867,0.00014059,2]
[403844984,1769592171456,-9915.836266,0.00014059,2]
[403844985,1769592171558,-10000.01,0.00014059,2]
[403844986,1769592171697,-10000.01,0.00014059,2]
[403844987,1769592171840,-10000.01,0.00014059,2]
[403844988,1769592273089,150.0,0.00020726,30]
[403844989,1769592273238,150.0,0.00020781,30]
[403844990,1769592273434,200.0,0.00020836,30]
[403844991,1769592274818,150.0,0.00020726,30]
[403844992,1769592274880,150.0,0.00020781,30]
[403844993,1769592274943,150.0,0.00020726,30]
[403844994,1769592274992,150.0,0.00020836,30]
[403844995,1769592275059,150.0,0.00020781,30]
[403844996,1769592275113,150.0,0.0002089,30]
[403844997,1769592275172,200.0,0.00020836,30]
[403844998,1769592275258,150.0,0.00020945,30]
[403844999,1769592275620,250.0,0.00021,30]
[403845000,1769592275676,150.0,0.00020726,30]
[403845001,1769592275777,150.0,0.00020781,30]
[403845002,1769592275915,200.0,0.00020836,30]
[403845003,1769592292634,-3079.21,0.00013786,2]
[403845004,1769592292671,-873.8391,0.00013959,2]
[403845005,1769592292714,-2093.9118,0.00013959,2]
[403845006,1769592299087,-150.0,0.00013751,2]
[403845007,1769592299114,-2500.0,0.00013959,2]
[403845008,1769592299142,-300.0,0.00014057,2]
[403845009,1769592299170,-300.0,0.00014057,2]
[403845010,1769592299197,-500.0,0.00014058,2]
[403845011,1769592299225,-583.17167079,0.00014058,2]
[403845012,1769592299256,-361.56951038,0.00014058,2]
[403845013,1769592299284,-51.17116173,0.00014058,2]
[403845014,1769592299397,-508.1853142,0.00014058,2]
[403845015,1769592326164,1028.79992716,0.000108,2]
[403845017,1769592336411,5345.41669017,9e-05,2]
[403845018,1769592336433,6374.21661733,9e-05,2]
[403845019,1769592336455,3280.3666925,9e-05,2]
[403845020,1769592353429,3093.84992483,0.00013652,2]
[403845021,1769592365361,-3093.85992483,0.00013652,2]
[403845022,1769592365389,-3812.29015034,0.00013652,2]
[403845023,1769592365570,-2768.16,0.00013751,2]
[403845024,1769592365598,-152.0,0.00013856,2]
[403845025,1769592365626,-300.0,0.00013958,2]
[403845026,1769592365702,-3559.69,0.00013959,2]